fUST/lending_fUST_20250726
["ID","MTS","AMOUNT","RATE_DAILY","PERIOD"]
[375104939,1753529443901,-460.0,0.00020273,2]
[375104941,1753529443911,-726.9,0.00020273,2]
[375104943,1753529443921,-507.67,0.00020273,2]
[375104945,1753529443931,-460.0,0.00020273,2]
[375104947,1753529443940,-460.0,0.00020273,2]
[375104949,1753529443949,-2765.05,0.00020273,2]
[375104951,1753529443958,-626.15,0.00020273,2]
[375104953,1753529443967,-460.0,0.00020273,2]
[375104955,1753529443975,-460.0,0.00020273,2]
[375104956,1753529443990,-460.0,0.00020273,2]
[375104958,1753529443999,-749.5,0.00020273,2]
[375104960,1753529444008,-1000.0,0.00020321,2]
[375104962,1753529444017,-1000.0,0.00020321,2]
[375104964,1753529444030,-285.07,0.0002036,2]
[375104966,1753529444039,-180.77,0.00020399,2]
[375104968,1753529444048,-171.9,0.00020459,3]
[375104970,1753529444058,-309.8,0.00020538,3]
[375104972,1753529444067,-460.0,0.00020547,2]
[375104974,1753529444077,-460.0,0.00020547,2]
[375104976,1753529444086,-460.0,0.00020547,2]
[375104978,1753529444096,-460.0,0.00020547,2]
[375104980,1753529444105,-460.0,0.00020547,2]
[375104982,1753529444115,-460.0,0.00020547,2]
[375104984,1753529444126,-460.0,0.00020547,2]
[375104986,1753529444135,-460.0,0.00020547,2]
[375104988,1753529444145,-515.93,0.00020547,2]
[375104990,1753529444155,-460.0,0.00020547,2]
[375104992,1753529444164,-1040.84,0.00020547,2]
[375104994,1753529444174,-920.08,0.00020547,2]
[375104996,1753529444183,-1072.59,0.00020547,2]
[375104998,1753529444193,-460.0,0.00020547,2]
[375105000,1753529444203,-460.0,0.00020547,2]
[375105002,1753529444216,-1739.7,0.00020547,2]
[375105004,1753529444225,-460.0,0.00020547,2]
[375105006,1753529444235,-460.0,0.00020547,2]
[375105008,1753529444244,-758.04,0.00020547,2]
[375105010,1753529444253,-460.0,0.00020547,2]
[375105012,1753529444263,-460.0,0.00020547,2]
[375105013,1753529444278,-507.11,0.00020547,2]
[375105015,1753529444292,-503.68,0.00020547,2]
[375105018,1753529444303,-460.0,0.00020547,2]
[375105019,1753529444314,-460.0,0.00020547,2]
[375105021,1753529444324,-1371.26,0.00020547,2]
[375105023,1753529444335,-1276.4,0.00020547,2]
[375105025,1753529444347,-591.69,0.00020547,2]
[375105027,1753529444359,-569.29,0.00020547,2]
[375105029,1753529444370,-460.0,0.00020547,2]
[375105031,1753529444381,-460.0,0.00020547,2]
[375105033,1753529444393,-460.0,0.00020547,2]
[375105035,1753529444404,-1115.3,0.00020547,2]
[375105037,1753529444415,-842.29,0.00020547,2]
[375105039,1753529444425,-460.0,0.00020547,2]
[375105041,1753529444435,-1177.67,0.00020547,2]
[375105043,1753529444447,-460.0,0.00020547,2]
[375105045,1753529444458,-460.0,0.00020547,2]
[375105047,1753529444468,-460.0,0.00020547,2]
[375105049,1753529444481,-4000.63,0.00020547,2]
[375105051,1753529444491,-460.0,0.00020547,2]
[375105052,1753529444503,-460.0,0.00020547,2]
[375105055,1753529444514,-460.0,0.00020547,2]
[375105056,1753529444529,-1081.06,0.00020547,2]
[375105058,1753529444540,-460.0,0.00020547,2]
[375105060,1753529444550,-460.0,0.00020547,2]
[375105062,1753529444560,-1328.36,0.00020547,2]
[375105064,1753529444569,-460.0,0.00020547,2]
[375105066,1753529444578,-460.0,0.00020547,2]
[375105068,1753529444588,-726.9,0.00020547,2]
[375105071,1753529444598,-507.67,0.00020547,2]
[375105072,1753529444608,-354.38070396,0.00020547,2]
[375105074,1753529444617,-460.0,0.00020547,2]
[375105077,1753529444632,-2765.05,0.00020547,2]
[375105079,1753529444647,-626.15,0.00020547,2]
[375105082,1753529444662,-460.0,0.00020547,2]
[375105084,1753529444674,-460.0,0.00020547,2]
[375105087,1753529444687,-460.0,0.00020547,2]
[375105089,1753529444700,-749.5,0.00020547,2]
[375105091,1753529444714,-501.69698606,0.000208,2]
[375105094,1753529444727,-260.0,0.00020804,2]
[375105096,1753529444741,-470.45930808,0.00020821,2]
[375105099,1753529444755,-460.0,0.00020821,2]
[375105101,1753529444770,-460.0,0.00020821,2]
[375105103,1753529444787,-460.0,0.00020821,2]
[375105106,1753529444799,-460.0,0.00020821,2]
[375105108,1753529444812,-460.0,0.00020821,2]
[375105110,1753529444824,-460.0,0.00020821,2]
[375105113,1753529444838,-1040.84,0.00020821,2]
[375105115,1753529444853,-920.08,0.00020821,2]
[375105117,1753529444865,-1072.59,0.00020821,2]
[375105120,1753529444879,-460.0,0.00020821,2]
[375105122,1753529444890,-460.0,0.00020821,2]
[375105124,1753529444903,-1739.7,0.00020821,2]
[375105126,1753529444916,-460.0,0.00020821,2]
[375105129,1753529444933,-460.0,0.00020821,2]
[375105131,1753529444948,-758.04,0.00020821,2]
[375105134,1753529444960,-460.0,0.00020821,2]
[375105136,1753529444975,-460.0,0.00020821,2]
[375105138,1753529444990,-507.11,0.00020821,2]
[375105141,1753529445003,-460.0,0.00020821,2]
[375105143,1753529445016,-460.0,0.00020821,2]
[375105145,1753529445032,-1371.26,0.00020821,2]
[375105147,1753529445042,-1276.4,0.00020821,2]
[375105150,1753529445055,-591.69,0.00020821,2]
[375105152,1753529445069,-460.0,0.00020821,2]
[375105154,1753529445082,-460.0,0.00020821,2]
[375105157,1753529445095,-1115.3,0.00020821,2]
[375105159,1753529445106,-842.29,0.00020821,2]
[375105161,1753529445117,-460.0,0.00020821,2]
[375105163,1753529445131,-1177.67,0.00020821,2]
[375105166,1753529445143,-460.0,0.00020821,2]
[375105168,1753529445154,-460.0,0.00020821,2]
[375105170,1753529445164,-460.0,0.00020821,2]
[375105172,1753529445175,-4000.63,0.00020821,2]
[375105174,1753529445186,-460.0,0.00020821,2]
[375105176,1753529445198,-460.0,0.00020821,2]
[375105178,1753529445209,-460.0,0.00020821,2]
[375105180,1753529445224,-1081.06,0.00020821,2]
[375105183,1753529445236,-460.0,0.00020821,2]
[375105185,1753529445247,-460.0,0.00020821,2]
[375105187,1753529445260,-1328.36,0.00020821,2]
[375105189,1753529445275,-460.0,0.00020821,2]
[375105191,1753529445287,-460.0,0.00020821,2]
[375105194,1753529445298,-726.9,0.00020821,2]
[375105196,1753529445310,-507.67,0.00020821,2]
[375105198,1753529445322,-460.0,0.00020821,2]
[375105200,1753529445333,-2765.05,0.00020821,2]
[375105202,1753529445344,-626.15,0.00020821,2]
[375105205,1753529445355,-507.23605777,0.00020821,2]
[375105207,1753529445366,-460.0,0.00020821,2]
[375105209,1753529445377,-460.0,0.00020821,2]
[375105211,1753529445389,-749.5,0.00020821,2]
[375105213,1753529445400,-1083.045,0.00020832,2]
[375105216,1753529445411,-420.288,0.00020832,2]
[375105219,1753529445422,-171.9,0.00020863,4]
[375105221,1753529445434,-1126.91030039,0.00020868,2]
[375105223,1753529445446,-1500.0,0.00020868,2]
[375105225,1753529445458,-250.25192464,0.000209,2]
[375105228,1753529445470,-1276.03055214,0.00020972,2]
[375105229,1753529445481,-460.0,0.00021095,2]
[375105230,1753529445493,-460.0,0.00021095,2]
[375105231,1753529445505,-460.0,0.00021095,2]
[375105232,1753529445516,-460.0,0.00021095,2]
[375105233,1753529445533,-460.0,0.00021095,2]
[375105234,1753529445546,-460.0,0.00021095,2]
[375105235,1753529445556,-1040.84,0.00021095,2]
[375105236,1753529445566,-920.08,0.00021095,2]
[375105237,1753529445576,-1072.59,0.00021095,2]
[375105238,1753529445586,-459.78723784,0.00021095,2]
[375105239,1753529445597,-1739.7,0.00021095,2]
[375105240,1753529445607,-460.0,0.00021095,2]
[375105241,1753529445619,-460.0,0.00021095,2]
[375105242,1753529445630,-460.0,0.00021095,2]
[375105243,1753529445639,-758.04,0.00021095,2]
[375105244,1753529445650,-460.0,0.00021095,2]
[375105245,1753529445660,-460.0,0.00021095,2]
[375105246,1753529445670,-507.11,0.00021095,2]
[375105247,1753529445680,-460.0,0.00021095,2]
[375105248,1753529445691,-460.0,0.00021095,2]
[375105249,1753529445700,-1371.26,0.00021095,2]
[375105250,1753529445710,-1276.4,0.00021095,2]
[375105251,1753529445719,-591.69,0.00021095,2]
[375105252,1753529445728,-460.0,0.00021095,2]
[375105261,1753529445897,-460.0,0.00021095,2]
[375105263,1753529445910,-1115.3,0.00021095,2]
[375105265,1753529445920,-842.29,0.00021095,2]
[375105267,1753529445930,-259.72,0.00021095,2]
[375105269,1753529445939,-1177.67,0.00021095,2]
[375105271,1753529445949,-460.0,0.00021095,2]
[375105273,1753529445958,-460.0,0.00021095,2]
[375105275,1753529445967,-460.0,0.00021095,2]
[375105277,1753529445976,-4000.63,0.00021095,2]
[375105279,1753529445985,-460.0,0.00021095,2]
[375105281,1753529445994,-460.0,0.00021095,2]
[375105283,1753529446003,-460.0,0.00021095,2]
[375105285,1753529446013,-1081.06,0.00021095,2]
[375105287,1753529446025,-460.0,0.00021095,2]
[375105289,1753529446034,-460.0,0.00021095,2]
[375105290,1753529446043,-1328.36,0.00021095,2]
[375105292,1753529446052,-460.0,0.00021095,2]
[375105294,1753529446062,-460.0,0.00021095,2]
[375105296,1753529446071,-726.9,0.00021095,2]
[375105298,1753529446080,-507.67,0.00021095,2]
[375105300,1753529446090,-460.0,0.00021095,2]
[375105302,1753529446099,-2765.05,0.00021095,2]
[375105304,1753529446109,-626.15,0.00021095,2]
[375105306,1753529446118,-460.0,0.00021095,2]
[375105308,1753529446127,-460.0,0.00021095,2]
[375105310,1753529446137,-749.5,0.00021095,2]
[375105312,1753529446146,-1081.89,0.000212,2]
[375105314,1753529446155,-745.552,0.00021211,2]
[375105316,1753529446165,-231.28369723,0.00021246,2]
[375105318,1753529446174,-171.9,0.00021267,4]
[375105320,1753529446183,-360.0,0.00021352,2]
[375105322,1753529446193,-460.0,0.00021369,2]
[375105324,1753529446203,-460.0,0.00021369,2]
[375105326,1753529446212,-460.0,0.00021369,2]
[375105328,1753529446224,-460.0,0.00021369,2]
[375105330,1753529446233,-460.0,0.00021369,2]
[375105332,1753529446242,-460.0,0.00021369,2]
[375105334,1753529446251,-1040.84,0.00021369,2]
[375105336,1753529446260,-920.08,0.00021369,2]
[375105338,1753529446270,-1072.59,0.00021369,2]
[375105339,1753529446283,-1739.7,0.00021369,2]
[375105341,1753529446292,-460.0,0.00021369,2]
[375105343,1753529446303,-460.0,0.00021369,2]
[375105345,1753529446312,-460.0,0.00021369,2]
[375105347,1753529446322,-758.04,0.00021369,2]
[375105349,1753529446331,-460.0,0.00021369,2]
[375105351,1753529446341,-460.0,0.00021369,2]
[375105353,1753529446350,-507.11,0.00021369,2]
[375105355,1753529446359,-460.0,0.00021369,2]
[375105357,1753529446369,-460.0,0.00021369,2]
[375105359,1753529446378,-1371.26,0.00021369,2]
[375105361,1753529446387,-1276.4,0.00021369,2]
[375105363,1753529446397,-591.69,0.00021369,2]
[375105365,1753529446406,-460.0,0.00021369,2]
[375105367,1753529446417,-460.0,0.00021369,2]
[375105369,1753529446427,-1115.3,0.00021369,2]
[375105371,1753529446436,-842.29,0.00021369,2]
[375105373,1753529446446,-1177.67,0.00021369,2]
[375105375,1753529446455,-460.0,0.00021369,2]
[375105377,1753529446464,-460.0,0.00021369,2]
[375105379,1753529446473,-460.0,0.00021369,2]
[375105381,1753529446483,-4000.63,0.00021369,2]
[375105383,1753529446492,-460.0,0.00021369,2]
[375105385,1753529446501,-460.0,0.00021369,2]
[375105387,1753529446511,-1081.06,0.00021369,2]
[375105389,1753529446520,-460.0,0.00021369,2]
[375105391,1753529446534,-460.0,0.00021369,2]
[375105393,1753529446544,-1328.36,0.00021369,2]
[375105395,1753529446553,-460.0,0.00021369,2]
[375105397,1753529446563,-460.0,0.00021369,2]
[375105399,1753529446572,-726.9,0.00021369,2]
[375105401,1753529446581,-507.67,0.00021369,2]
[375105403,1753529446590,-460.0,0.00021369,2]
[375105405,1753529446599,-2765.05,0.00021369,2]
[375105407,1753529446608,-626.15,0.00021369,2]
[375105409,1753529446618,-401.75,0.00021369,2]
[375105411,1753529446627,-460.0,0.00021369,2]
[375105412,1753529446637,-749.5,0.00021369,2]
[375105414,1753529446647,-514.16056292,0.00021406,2]
[375105416,1753529446656,-500.0,0.00021406,2]
[375105418,1753529446666,-500.0,0.00021406,2]
[375105420,1753529446675,-500.0,0.00021406,2]
[375105422,1753529446685,-500.0,0.00021416,2]
[375105424,1753529446694,-179.83814567,0.00021627,2]
[375105426,1753529446703,-353.28909837,0.00021643,2]
[375105428,1753529446714,-460.0,0.00021643,2]
[375105430,1753529446723,-460.0,0.00021643,2]
[375105432,1753529446732,-460.0,0.00021643,2]
[375105434,1753529446741,-460.0,0.00021643,2]
[375105436,1753529446751,-460.0,0.00021643,2]
[375105438,1753529446759,-1040.84,0.00021643,2]
[375105440,1753529446768,-920.08,0.00021643,2]
[375105442,1753529446780,-1072.59,0.00021643,2]
[375105444,1753529446788,-1739.7,0.00021643,2]
[375105446,1753529446797,-460.0,0.00021643,2]
[375105448,1753529446806,-460.0,0.00021643,2]
[375105450,1753529446816,-460.0,0.00021643,2]
[375105452,1753529446829,-758.04,0.00021643,2]
[375105454,1753529446839,-460.0,0.00021643,2]
[375105456,1753529446848,-460.0,0.00021643,2]
[375105458,1753529446857,-507.11,0.00021643,2]
[375105460,1753529446866,-460.0,0.00021643,2]
[375105462,1753529446875,-460.0,0.00021643,2]
[375105464,1753529446884,-1371.26,0.00021643,2]
[375105466,1753529446894,-1276.4,0.00021643,2]
[375105468,1753529446903,-591.69,0.00021643,2]
[375105469,1753529446912,-460.0,0.00021643,2]
[375105472,1753529446922,-460.0,0.00021643,2]
[375105473,1753529446932,-1115.3,0.00021643,2]
[375105476,1753529446943,-842.29,0.00021643,2]
[375105477,1753529446952,-1177.67,0.00021643,2]
[375105480,1753529446961,-460.0,0.00021643,2]
[375105482,1753529446970,-570.28107445,0.00021643,2]
[375105483,1753529446980,-460.0,0.00021643,2]
[375105485,1753529446989,-4000.63,0.00021643,2]
[375105487,1753529446998,-460.0,0.00021643,2]
[375105489,1753529447007,-460.0,0.00021643,2]
[375105491,1753529447016,-1081.06,0.00021643,2]
[375105493,1753529447027,-460.0,0.00021643,2]
[375105495,1753529447037,-460.0,0.00021643,2]
[375105497,1753529447046,-1328.36,0.00021643,2]
[375105499,1753529447055,-460.0,0.00021643,2]
[375105501,1753529447064,-460.0,0.00021643,2]
[375105503,1753529447073,-726.9,0.00021643,2]
[375105505,1753529447083,-507.67,0.00021643,2]
[375105507,1753529447092,-460.0,0.00021643,2]
[375105509,1753529447102,-2765.05,0.00021643,2]
[375105511,1753529447111,-626.15,0.00021643,2]
[375105513,1753529447121,-460.0,0.00021643,2]
[375105515,1753529447130,-749.5,0.00021643,2]
[375105517,1753529447139,-360.0,0.00021645,2]
[375105519,1753529447147,-171.9,0.0002167,4]
[375105521,1753529447156,-324.0,0.000217,2]
[375105523,1753529447165,-360.0,0.00021839,2]
[375105525,1753529447174,-360.0,0.0002187,2]
[375105527,1753529447184,-460.0,0.000219,2]
[375105529,1753529447194,-160.09079302,0.00021917,2]
[375105531,1753529447203,-460.0,0.00021917,2]
[375105533,1753529447212,-460.0,0.00021917,2]
[375105535,1753529447223,-460.0,0.00021917,2]
[375105537,1753529447232,-460.0,0.00021917,2]
[375105539,1753529447241,-500.0,0.00021917,2]
[375105541,1753529447250,-500.0,0.00021917,2]
[375105543,1753529447259,-1040.84,0.00021917,2]
[375105544,1753529447268,-920.08,0.00021917,2]
[375105546,1753529447280,-1072.59,0.00021917,2]
[375105548,1753529447289,-1739.7,0.00021917,2]
[375105550,1753529447298,-460.0,0.00021917,2]
[375105552,1753529447307,-460.0,0.00021917,2]
[375105554,1753529447317,-460.0,0.00021917,2]
[375105556,1753529447326,-758.04,0.00021917,2]
[375105558,1753529447335,-460.0,0.00021917,2]
[375105560,1753529447344,-204.33266377,0.00021917,2]
[375105562,1753529447353,-507.11,0.00021917,2]
[375105564,1753529447364,-460.0,0.00021917,2]
[375105566,1753529447373,-265.22245289,0.00021917,2]
[375105568,1753529447382,-1371.26,0.00021917,2]
[375105570,1753529447391,-1276.4,0.00021917,2]
[375105572,1753529447400,-591.69,0.00021917,2]
[375105574,1753529447409,-460.0,0.00021917,2]
[375105576,1753529447419,-460.0,0.00021917,2]
[375105578,1753529447428,-1115.3,0.00021917,2]
[375105580,1753529447437,-842.29,0.00021917,2]
[375105582,1753529447446,-1177.67,0.00021917,2]
[375105584,1753529447455,-460.0,0.00021917,2]
[375105586,1753529447465,-460.0,0.00021917,2]
[375105588,1753529447474,-4000.63,0.00021917,2]
[375105590,1753529447483,-460.0,0.00021917,2]
[375105592,1753529447492,-460.0,0.00021917,2]
[375105594,1753529447502,-1081.06,0.00021917,2]
[375105596,1753529447511,-460.0,0.00021917,2]
[375105598,1753529447521,-460.0,0.00021917,2]
[375105600,1753529447532,-1328.36,0.00021917,2]
[375105602,1753529447541,-460.0,0.00021917,2]
[375105604,1753529447550,-460.0,0.00021917,2]
[375105606,1753529447559,-726.9,0.00021917,2]
[375105608,1753529447568,-507.67,0.00021917,2]
[375105610,1753529447577,-460.0,0.00021917,2]
[375105612,1753529447587,-2765.05,0.00021917,2]
[375105614,1753529447596,-626.15,0.00021917,2]
[375105616,1753529447605,-460.0,0.00021917,2]
[375105618,1753529447614,-749.5,0.00021917,2]
[375105620,1753529447623,-152.0,0.00021918,2]
[375105622,1753529447632,-152.0,0.00021918,2]
[375105623,1753529447641,-152.0,0.00021918,2]
[375105625,1753529447651,-152.0,0.00021918,2]
[375105628,1753529447660,-152.0,0.00021918,2]
[375105629,1753529447669,-152.0,0.00021918,2]
[375105631,1753529447679,-152.0,0.00021918,2]
[375105633,1753529447689,-152.0,0.00021918,2]
[375105636,1753529447698,-152.0,0.00021918,2]
[375105638,1753529447709,-152.0,0.00021918,2]
[375105639,1753529447719,-152.0,0.00021918,2]
[375105641,1753529447728,-152.0,0.00021918,2]
[375105643,1753529447738,-152.0,0.00021918,2]
[375105645,1753529447748,-152.0,0.00021918,2]
[375105647,1753529447757,-152.0,0.00021918,2]
[375105649,1753529447766,-152.0,0.00021918,2]
[375105651,1753529447776,-152.0,0.00021918,2]
[375105653,1753529447786,-152.0,0.00021918,2]
[375105655,1753529447795,-152.0,0.00021918,2]
[375105657,1753529447808,-152.0,0.00021918,2]
[375105659,1753529447817,-152.0,0.00021918,2]
[375105661,1753529447828,-177.319409,0.00021918,2]
[375105663,1753529447838,-150.0,0.00021918,2]
[375105665,1753529447847,-2200.0,0.00021921,2]
[375105667,1753529447856,-1276.03055214,0.00021933,2]
[375105669,1753529447865,-1007.3796883,0.00021954,2]
[375105671,1753529447875,-500.0,0.00021954,2]
[375105673,1753529447884,-500.0,0.00021954,2]
[375105675,1753529447893,-360.0,0.00021992,2]
[375105677,1753529447902,-151.0,0.00022,5]
[375105679,1753529447911,-1289.9,0.00022,7]
[375105681,1753529447920,-2785.73573917,0.00022,2]
[375105683,1753529447929,-353.20680426,0.00022,2]
[375105685,1753529447938,-56812.20459019,0.00022,2]
[375105687,1753529447947,-71045.07065582,0.00022,5]
[375105689,1753529447956,-551.33143372,0.00022,2]
[375105691,1753529447966,-232.28,0.00022,2]
[375105693,1753529447975,-756.89455248,0.00022062,8]
[375105695,1753529447984,-171.9,0.00022074,5]
[375105697,1753529447994,-360.0,0.00022087,2]
[375105699,1753529448003,-5000.0,0.000221,2]
[375105701,1753529448012,-151.68743069,0.00022129,2]
[375105703,1753529448022,-360.0,0.00022152,2]
[375105705,1753529448033,-460.0,0.00022191,2]
[375105707,1753529448043,-460.0,0.00022191,2]
[375105709,1753529448052,-460.0,0.00022191,2]
[375105711,1753529448061,-460.0,0.00022191,2]
[375105713,1753529448071,-1040.84,0.00022191,2]
[375105715,1753529448081,-920.08,0.00022191,2]
[375105717,1753529448090,-1072.59,0.00022191,2]
[375105719,1753529448100,-1739.7,0.00022191,2]
[375105721,1753529448108,-460.0,0.00022191,2]
[375105723,1753529448117,-460.0,0.00022191,2]
[375105725,1753529448126,-460.0,0.00022191,2]
[375105727,1753529448135,-758.04,0.00022191,2]
[375105729,1753529448144,-460.0,0.00022191,2]
[375105731,1753529448154,-507.11,0.00022191,2]
[375105733,1753529448163,-460.0,0.00022191,2]
[375105735,1753529448171,-1371.26,0.00022191,2]
[375105736,1753529448181,-1276.4,0.00022191,2]
[375105737,1753529448192,-591.69,0.00022191,2]
[375105738,1753529448206,-393.01108947,0.00022191,2]
[375105739,1753529448216,-460.0,0.00022191,2]
[375105740,1753529448226,-1115.3,0.00022191,2]
[375105741,1753529448234,-842.29,0.00022191,2]
[375105742,1753529448244,-1177.67,0.00022191,2]
[375105743,1753529448253,-460.0,0.00022191,2]
[375105744,1753529448263,-460.0,0.00022191,2]
[375105745,1753529448272,-4000.63,0.00022191,2]
[375105746,1753529448285,-460.0,0.00022191,2]
[375105748,1753529448295,-460.0,0.00022191,2]
[375105750,1753529448305,-1081.06,0.00022191,2]
[375105752,1753529448314,-460.0,0.00022191,2]
[375105754,1753529448324,-460.0,0.00022191,2]
[375105756,1753529448334,-1328.36,0.00022191,2]
[375105758,1753529448344,-460.0,0.00022191,2]
[375105760,1753529448354,-460.0,0.00022191,2]
[375105762,1753529448364,-726.9,0.00022191,2]
[375105764,1753529448374,-507.67,0.00022191,2]
[375105766,1753529448384,-460.0,0.00022191,2]
[375105768,1753529448393,-2765.05,0.00022191,2]
[375105770,1753529448403,-626.15,0.00022191,2]
[375105772,1753529448414,-749.5,0.00022191,2]
[375105774,1753529448423,-361.53,0.00022253,2]
[375105776,1753529448432,-756.89455248,0.00022283,8]
[375105778,1753529448442,-360.0,0.00022348,2]
[375105780,1753529448451,-601.20120063,0.0002241,7]
[375105782,1753529448460,-560.0,0.00022448,2]
[375105784,1753529448469,-460.0,0.00022465,2]
[375105786,1753529448478,-460.0,0.00022465,2]
[375105788,1753529448487,-460.0,0.00022465,2]
[375105790,1753529448496,-460.0,0.00022465,2]
[375105792,1753529448505,-1040.84,0.00022465,2]
[375105794,1753529448515,-920.08,0.00022465,2]
[375105796,1753529448525,-1072.59,0.00022465,2]
[375105798,1753529448534,-1705.39,0.00022465,2]
[375105800,1753529448545,-1739.7,0.00022465,2]
[375105802,1753529448555,-460.0,0.00022465,2]
[375105804,1753529448565,-460.0,0.00022465,2]
[375105806,1753529448575,-460.0,0.00022465,2]
[375105808,1753529448584,-758.04,0.00022465,2]
[375105810,1753529448594,-460.0,0.00022465,2]
[375105812,1753529448604,-507.11,0.00022465,2]
[375105814,1753529448613,-460.0,0.00022465,2]
[375105816,1753529448622,-1371.26,0.00022465,2]
[375105818,1753529448631,-1276.4,0.00022465,2]
[375105830,1753529448739,-591.69,0.00022465,2]
[375105832,1753529448750,-460.0,0.00022465,2]
[375105834,1753529448760,-1115.3,0.00022465,2]
[375105836,1753529448772,-842.29,0.00022465,2]
[375105839,1753529448783,-1177.67,0.00022465,2]
[375105840,1753529448793,-460.0,0.00022465,2]
[375105843,1753529448803,-460.0,0.00022465,2]
[375105844,1753529448812,-4000.63,0.00022465,2]
[375105846,1753529448822,-460.0,0.00022465,2]
[375105848,1753529448832,-460.0,0.00022465,2]
[375105850,1753529448842,-1081.06,0.00022465,2]
[375105852,1753529448851,-460.0,0.00022465,2]
[375105854,1753529448861,-460.0,0.00022465,2]
[375105856,1753529448872,-1328.36,0.00022465,2]
[375105858,1753529448882,-460.0,0.00022465,2]
[375105860,1753529448891,-460.0,0.00022465,2]
[375105862,1753529448902,-726.9,0.00022465,2]
[375105865,1753529448912,-507.67,0.00022465,2]
[375105867,1753529448921,-460.0,0.00022465,2]
[375105869,1753529448931,-2765.05,0.00022465,2]
[375105870,1753529448940,-626.15,0.00022465,2]
[375105872,1753529448949,-749.5,0.00022465,2]
[375105874,1753529448960,-300.0,0.00022466,2]
[375105877,1753529448969,-360.0,0.00022475,2]
[375105879,1753529448979,-171.9,0.00022478,5]
[375105881,1753529448989,-232.28,0.000225,2]
[375105882,1753529448999,-475.87005224,0.00022503,8]
[375105884,1753529449010,-360.0,0.00022563,2]
[375105886,1753529449020,-151.0,0.000226,6]
[375105888,1753529449030,-411.086028,0.00022603,2]
[375105890,1753529449040,-239.84119403,0.00022615,2]
[375105892,1753529449050,-246.88,0.000227,4]
[375105894,1753529449060,-192.02421222,0.000227,4]
[375105896,1753529449070,-192.02421222,0.000227,4]
[375105898,1753529449080,-508.9425177,0.00022739,2]
[375105900,1753529449091,-460.0,0.00022739,2]
[375105902,1753529449101,-460.0,0.00022739,2]
[375105904,1753529449111,-460.0,0.00022739,2]
[375105906,1753529449121,-1040.84,0.00022739,2]
[375105908,1753529449132,-920.08,0.00022739,2]
[375105910,1753529449143,-1072.59,0.00022739,2]
[375105912,1753529449154,-1739.7,0.00022739,2]
[375105914,1753529449165,-460.0,0.00022739,2]
[375105916,1753529449175,-460.0,0.00022739,2]
[375105918,1753529449184,-471.17836952,0.00022739,2]
[375105920,1753529449194,-758.04,0.00022739,2]
[375105922,1753529449208,-387.79068627,0.00022739,2]
[375105924,1753529449217,-507.11,0.00022739,2]
[375105926,1753529449227,-460.0,0.00022739,2]
[375105928,1753529449236,-1371.26,0.00022739,2]
[375105929,1753529449246,-1276.4,0.00022739,2]